fUST/lending_fUST_20250701
["ID","MTS","AMOUNT","RATE_DAILY","PERIOD"]
[368693684,1751302042174,-63.50280202,0.00018647,2]
[368693736,1751302146114,-927.816879,0.00018326,2]
[368693737,1751302146137,-138.25471518,0.00018647,2]
[368693738,1751302146159,-214.73440384,0.00018647,2]
[368693739,1751302146183,-199.20518931,0.00018747,2]
[368693740,1751302146204,-434.27429845,0.000189,2]
[368693741,1751302146227,-191.95680372,0.00019049,2]
[368693742,1751302146249,-297.0,0.00019234,2]
[368693743,1751302146271,-300.0,0.00019234,2]
[368693744,1751302146292,-25563.2834678,0.00019235,2]
[368693745,1751302146314,-255.2150648,0.00019274,2]
[368693746,1751302146335,-300.0,0.00019444,2]
[368693747,1751302146357,-300.0,0.00019444,2]
[368693748,1751302146379,-300.0,0.00019444,2]
[368693749,1751302146403,-1200.0,0.00019444,2]
[368693750,1751302146425,-10000.0,0.00019445,2]
[368693751,1751302146451,-169.71632825,0.00019538,2]
[368693752,1751302146472,-2781.6911669,0.00019638,2]
[368693753,1751302146495,-160.0,0.00019686,2]
[368693754,1751302146518,-176.858349,0.00020187,2]
[368693755,1751302146540,-460.0,0.00020416,2]
[368693756,1751302146564,-641.4779972,0.00020423,2]
[368693757,1751302146587,-468.8429287,0.00020499,2]
[368693758,1751302146609,-468.8429287,0.00020545,2]
[368693759,1751302146633,-523.6161968,0.00020547,2]
[368693760,1751302146658,-13932.06237176,0.00020547,2]
[368693761,1751302146679,-468.8429287,0.0002059,2]
[368693762,1751302146701,-160.0,0.00020598,2]
[368693763,1751302146872,-500.0,0.0002061,2]
[368693764,1751302146905,-500.0,0.0002061,2]
[368693765,1751302146927,-500.0,0.0002061,2]
[368693766,1751302146949,-500.0,0.0002061,2]
[368693767,1751302146970,-500.0,0.0002061,2]
[368693768,1751302146993,-500.0,0.0002061,2]
[368693769,1751302147014,-500.0,0.0002061,2]
[368693770,1751302147036,-500.0,0.0002061,2]
[368693771,1751302147059,-500.0,0.0002061,2]
[368693772,1751302147080,-310.18641421,0.0002061,2]
[368693773,1751302148097,-1575.89821004,0.00018226,2]
[368693774,1751302148129,-16797.7619271,0.00018226,2]
[368693775,1751302156184,-79703.28367367,0.00018226,2]
[368693917,1751302165104,-1238.13834049,0.00018226,2]
[368693918,1751302165130,-460.0,0.00019234,2]
[368693920,1751302165158,-460.0,0.00019508,2]
[368693924,1751302165185,-460.0,0.00019782,2]
[368693927,1751302165211,-189.81358579,0.0002061,2]
[368693931,1751302165239,-500.0,0.0002061,2]
[368693935,1751302165266,-500.0,0.0002061,2]
[368693939,1751302165292,-571.37979665,0.0002061,2]
[368693941,1751302165319,-500.0,0.0002061,2]
[368693942,1751302165345,-21.82776224,0.0002061,2]
[368693985,1751302170100,-585.09204829,0.0002061,2]
[368693986,1751302170130,-300.0,0.0002061,2]
[368693987,1751302170154,-500.0,0.0002061,2]
[368693988,1751302170178,-500.0,0.0002061,2]
[368693989,1751302170201,-500.0,0.0002061,2]
[368693990,1751302170227,-500.0,0.0002061,2]
[368693991,1751302170253,-599.75561973,0.0002061,2]
[368693992,1751302170280,-500.0,0.0002061,2]
[368693993,1751302170305,-250.0,0.0002061,2]
[368693994,1751302170327,-500.0,0.0002061,2]
[368693995,1751302170352,-627.10477241,0.0002061,2]
[368693996,1751302170378,-500.0,0.0002061,2]
[368693997,1751302170406,-14317.77880099,0.0002062,2]
[368693999,1751302232489,-2231.2875119,0.0001966,2]
[368694002,1751302232500,-300.0,0.0002061,2]
[368694004,1751302232510,-213.84631524,0.00020611,10]
[368694005,1751302232520,-647.54,0.00020611,3]
[368694007,1751302232530,-806.82616786,0.00020611,10]
[368694008,1751302232541,-2642.96383214,0.00020611,10]
[368694009,1751302232552,-957.32174628,0.00020611,10]
[368694012,1751302232595,-1917.49825372,0.00020611,10]
[368694014,1751302232605,-31261.79531266,0.00020621,2]
[368694045,1751302238193,-174.59775518,0.0002062,2]
[368694046,1751302238202,-347.45608582,0.0002062,2]
[368694047,1751302238212,-200.0,0.0002062,2]
[368694048,1751302238221,-250.0,0.0002062,2]
[368694049,1751302238231,-173.53004514,0.0002062,2]
[368694050,1751302238245,-115.33169039,0.0002062,2]
[368694051,1751302238255,-178.54664561,0.0002062,2]
[368694052,1751302238264,-12955.15999932,0.00020621,2]
[368694053,1751302238298,-79796.49450401,0.00020621,2]
[368694054,1751302238310,-2464.40000001,0.00020621,2]
[368694055,1751302238413,-243522.150184,0.00020621,2]
[368694056,1751302238424,-460.0,0.0002069,2]
[368694057,1751302238435,-2324.31,0.000207,2]
[368694059,1751302238446,-460.0,0.0002071,2]
[368694060,1751302238456,-460.0,0.0002071,2]
[368694061,1751302238466,-460.0,0.0002071,2]
[368694062,1751302238477,-460.0,0.0002071,2]
[368694063,1751302238487,-460.0,0.0002071,2]
[368694064,1751302238498,-460.0,0.0002071,2]
[368694065,1751302238508,-460.0,0.0002071,2]
[368694066,1751302238519,-460.0,0.0002071,2]
[368694067,1751302238529,-160.0,0.00020713,2]
[368694068,1751302238540,-160.0,0.00020713,2]
[368694069,1751302238550,-230.31346914,0.00020713,2]
[368694070,1751302238560,-837.16779106,0.00020714,2]
[368694071,1751302238570,-295.73207689,0.00020719,2]
[368694072,1751302238581,-460.0,0.00020719,2]
[368694073,1751302238591,-460.0,0.00020719,2]
[368694074,1751302238602,-247.617,0.00020719,2]
[368694075,1751302238613,-460.0,0.00020719,2]
[368694076,1751302238623,-460.0,0.0002072,2]
[368694077,1751302238633,-460.0,0.0002072,2]
[368694078,1751302238643,-460.0,0.0002072,2]
[368694079,1751302238653,-151.942088,0.00020721,2]
[368694080,1751302238663,-151.0,0.00020721,2]
[368694081,1751302238673,-358.3777396,0.00020748,2]
[368694082,1751302238687,-168.0,0.00020837,2]
[368694083,1751302238696,-169.71632822,0.00020873,2]
[368694084,1751302238706,-1613.89,0.000209,2]
[368694085,1751302238716,-460.0,0.00020964,2]
[368694086,1751302238727,-514.04,0.00020984,2]
[368694087,1751302238736,-273.98304378,0.00020984,2]
[368694088,1751302238746,-460.0,0.00020984,2]
[368694089,1751302238757,-460.0,0.00020984,2]
[368694090,1751302238766,-552.92,0.00020984,2]
[368694091,1751302238776,-460.0,0.00020984,2]
[368694092,1751302238786,-460.0,0.00020984,2]
[368694093,1751302238796,-460.0,0.00020984,2]
[368694094,1751302238807,-460.0,0.00020993,2]
[368694095,1751302238818,-460.0,0.00020994,2]
[368694096,1751302238828,-460.0,0.00020994,2]
[368694097,1751302238837,-460.0,0.00020994,2]
[368694098,1751302238848,-523.61619677,0.0002111,2]
[368694099,1751302238858,-180.94004,0.00021163,2]
[368694100,1751302238869,-200.0,0.00021205,2]
[368694101,1751302238878,-847.41730813,0.0002123,2]
[368694102,1751302238889,-160.0,0.0002123,2]
[368694103,1751302238898,-460.0,0.00021238,2]
[368694104,1751302238908,-6000.0,0.00021241,2]
[368694105,1751302238919,-460.0,0.00021258,2]
[368694106,1751302238929,-460.0,0.00021258,2]
[368694107,1751302238939,-417.74,0.00021258,2]
[368694108,1751302238950,-460.0,0.00021267,2]
[368694109,1751302238961,-460.0,0.00021268,2]
[368694110,1751302238973,-460.0,0.00021268,2]
[368694111,1751302238983,-460.0,0.00021268,2]
[368694112,1751302238992,-460.0,0.00021512,2]
[368694113,1751302239002,-181.71172953,0.00021532,2]
[368694114,1751302239012,-460.0,0.00021532,2]
[368694115,1751302239022,-460.0,0.00021541,2]
[368694116,1751302239032,-460.0,0.00021542,2]
[368694117,1751302239043,-460.0,0.00021542,2]
[368694118,1751302239053,-261.0,0.00021591,2]
[368694119,1751302239062,-500.0,0.00021626,2]
[368694120,1751302239072,-500.0,0.00021626,2]
[368694121,1751302239081,-151.0,0.00021626,2]
[368694122,1751302239091,-500.0,0.00021626,2]
[368694123,1751302239101,-207.4,0.00021626,2]
[368694124,1751302239110,-523.61619677,0.00021674,2]
[368694125,1751302239119,-966.0,0.00021743,2]
[368694126,1751302239129,-646.0,0.00021743,2]
[368694127,1751302239140,-2151.0,0.00021743,2]
[368694128,1751302239150,-406.0,0.00021743,2]
[368694129,1751302239161,-460.0,0.00021786,2]
[368694130,1751302239173,-460.0,0.00021806,2]
[368694131,1751302239185,-205.84,0.00021815,2]
[368694132,1751302239194,-273.04520785,0.00021816,2]
[368694133,1751302239204,-547.71027585,0.00021816,2]
[368694134,1751302239214,-261.0,0.00021828,2]
[368694135,1751302239224,-2200.0,0.00021888,2]
[368694136,1751302239236,-500.0,0.00021917,2]
[368694137,1751302239247,-500.0,0.00021917,2]
[368694138,1751302239256,-500.0,0.00021917,2]
[368694139,1751302239266,-460.0,0.00021998,2]
[368694140,1751302239276,-460.0,0.00021998,2]
[368694141,1751302239286,-151.0,0.00021998,7]
[368694142,1751302239295,-151.0,0.00021998,7]
[368694143,1751302239305,-151.0,0.00021998,7]
[368694144,1751302239314,-151.0,0.00021998,7]
[368694145,1751302239324,-38963.9142371,0.00021999,2]
[368694146,1751302239334,-24900.0,0.00021999,2]
[368694147,1751302239344,-151.0,0.00021999,7]
[368694148,1751302239354,-151.0,0.00021999,7]
[368694149,1751302239363,-151.0,0.00021999,7]
[368694150,1751302239373,-151.0,0.00021999,7]
[368694151,1751302239384,-151.0,0.00021999,7]
[368694152,1751302239394,-151.0,0.00021999,7]
[368694153,1751302239404,-1053.4,0.00022,2]
[368694154,1751302239415,-2000.0,0.00022,2]
[368694155,1751302239425,-500.0,0.00022,2]
[368694156,1751302239435,-460.0,0.0002206,2]
[368694157,1751302239446,-460.0,0.0002208,2]
[368694158,1751302239456,-169.71632822,0.00022208,2]
[368694159,1751302239466,-523.61619677,0.00022237,2]
[368694160,1751302239478,-261.0,0.00022238,2]
[368694161,1751302239488,-460.0,0.00022272,2]
[368694162,1751302239498,-460.0,0.00022272,2]
[368694163,1751302239508,-171.151,0.00022334,2]
[368694164,1751302239519,-377.36,0.00022354,2]
[368694165,1751302239530,-420.0,0.00022428,2]
[368694166,1751302239540,-311.134711,0.00022539,4]
[368694167,1751302239550,-460.0,0.00022546,2]
[368694168,1751302239560,-151.0,0.00022555,7]
[368694169,1751302239570,-151.0,0.00022555,7]
[368694170,1751302239580,-523.61619677,0.000228,2]
[368694171,1751302239590,-460.0,0.0002282,2]
[368694172,1751302239602,-500.0,0.00022873,2]
[368694173,1751302239612,-500.0,0.00022873,2]
[368694174,1751302239622,-500.0,0.00022873,2]
[368694175,1751302239632,-500.0,0.00022873,2]
[368694176,1751302239642,-500.0,0.00022873,2]
[368694177,1751302239651,-500.0,0.00022873,2]
[368694178,1751302239661,-500.0,0.00022873,2]
[368694179,1751302239671,-500.0,0.00022873,2]
[368694180,1751302239681,-500.0,0.00022873,2]
[368694181,1751302239692,-500.0,0.00022873,2]
[368694182,1751302239703,-500.0,0.00022873,2]
[368694183,1751302239713,-500.0,0.00022873,2]
[368694184,1751302239722,-500.0,0.00022873,2]
[368694185,1751302239732,-500.0,0.00022873,2]
[368694186,1751302239743,-500.0,0.00022873,2]
[368694187,1751302239753,-600.0,0.00022873,2]
[368694188,1751302239763,-500.0,0.00022873,2]
[368694189,1751302239773,-500.0,0.00022873,2]
[368694190,1751302239783,-151.0,0.00022899,7]
[368694191,1751302239794,-500.0,0.00022899,2]
[368694192,1751302239803,-500.0,0.00022899,2]
[368694193,1751302239812,-322.39125931,0.00022899,2]
[368694194,1751302239822,-500.0,0.00022899,2]
[368694195,1751302239832,-500.0,0.00022899,2]
[368694196,1751302239841,-500.0,0.00022899,2]
[368694197,1751302239850,-297.15493284,0.00022899,2]
[368694198,1751302239860,-500.0,0.00022899,2]
[368694199,1751302239870,-500.0,0.00022899,2]
[368694200,1751302239879,-500.0,0.00022899,2]
[368694201,1751302239889,-500.0,0.00022899,2]
[368694202,1751302239899,-500.0,0.00022899,2]
[368694203,1751302239909,-500.0,0.00022899,2]
[368694204,1751302239918,-545.20629258,0.00022899,2]
[368694205,1751302239929,-500.0,0.00022899,2]
[368694206,1751302239940,-500.0,0.00022899,2]
[368694207,1751302239950,-500.0,0.00022899,2]
[368694208,1751302239960,-15191.48778614,0.000229,2]
[368694209,1751302239969,-348904.40614591,0.000229,7]
[368694210,1751302239980,-120116.41,0.000229,7]
[368694211,1751302239991,-151.0,0.000229,7]
[368694212,1751302240000,-151.0,0.000229,7]
[368694213,1751302240011,-151.0,0.000229,7]
[368694214,1751302240020,-151.0,0.000229,7]
[368694216,1751302240030,-151.0,0.000229,7]
[368694218,1751302240039,-151.0,0.000229,7]
[368694220,1751302240050,-151.0,0.000229,7]
[368694222,1751302240060,-151.0,0.000229,7]
[368694224,1751302240069,-151.0,0.000229,7]
[368694226,1751302240079,-720.799827,0.000229,7]
[368694228,1751302240088,-151.0,0.000229,7]
[368694230,1751302240098,-151.0,0.000229,7]
[368694232,1751302240108,-151.0,0.000229,7]
[368694234,1751302240117,-720.799827,0.000229,7]
[368694236,1751302240127,-720.799827,0.000229,7]
[368694238,1751302240137,-720.799827,0.000229,7]
[368694240,1751302240146,-720.799827,0.000229,7]
[368694241,1751302240155,-151.0,0.000229,7]
[368694243,1751302240165,-151.0,0.000229,7]
[368694245,1751302240176,-151.0,0.000229,3]
[368694247,1751302240185,-151.0,0.000229,3]
[368694249,1751302240195,-151.0,0.000229,3]
[368694251,1751302240205,-151.0,0.000229,3]
[368694253,1751302240214,-151.0,0.000229,3]
[368694255,1751302240223,-151.0,0.000229,3]
[368694257,1751302240233,-151.0,0.000229,3]
[368694259,1751302240242,-151.0,0.000229,3]
[368694261,1751302240252,-151.0,0.000229,3]
[368694263,1751302240261,-151.0,0.000229,3]
[368694265,1751302240271,-151.0,0.000229,3]
[368694267,1751302240281,-151.0,0.000229,3]
[368694269,1751302240290,-151.0,0.000229,3]
[368694271,1751302240299,-151.0,0.000229,3]
[368694273,1751302240309,-151.0,0.000229,3]
[368694275,1751302240319,-151.0,0.000229,3]
[368694277,1751302240329,-151.0,0.000229,3]
[368694279,1751302240338,-151.0,0.000229,3]
[368694281,1751302240347,-151.0,0.000229,3]
[368694283,1751302240357,-151.0,0.000229,3]
[368694285,1751302240367,-151.0,0.000229,3]
[368694287,1751302240377,-151.0,0.000229,3]
[368694289,1751302240389,-151.0,0.000229,3]
[368694291,1751302240399,-151.0,0.000229,3]
[368694293,1751302240409,-151.0,0.000229,3]
[368694295,1751302240420,-151.0,0.000229,3]
[368694297,1751302240429,-151.0,0.000229,3]
[368694299,1751302240439,-151.0,0.000229,3]
[368694301,1751302240449,-151.0,0.000229,3]
[368694303,1751302240459,-156.21624187,0.000229,3]
[368694305,1751302240469,-151.0,0.000229,2]
[368694308,1751302240480,-151.0,0.000229,2]
[368694309,1751302240489,-151.0,0.000229,2]
[368694312,1751302240500,-225.494757,0.000229,7]
[368694314,1751302240509,-151.0,0.000229,7]
[368694315,1751302240519,-151.0,0.000229,7]
[368694316,1751302240528,-151.0,0.000229,7]
[368694317,1751302240538,-152.302486,0.000229,7]
[368694318,1751302240547,-151.0,0.000229,7]
[368694319,1751302240557,-151.0,0.000229,7]
[368694320,1751302240567,-151.0,0.000229,7]
[368694321,1751302240577,-151.0,0.000229,7]
[368694322,1751302240587,-151.0,0.000229,7]
[368694323,1751302240596,-151.0,0.000229,7]
[368694324,1751302240606,-535.312697,0.000229,7]
[368694325,1751302240616,-535.312697,0.000229,7]
[368694326,1751302240626,-535.312697,0.000229,7]
[368694327,1751302240636,-535.312697,0.000229,7]
[368694328,1751302240645,-535.312697,0.000229,7]
[368694329,1751302240655,-535.312697,0.000229,7]
[368694330,1751302240666,-535.312697,0.000229,7]
[368694331,1751302240676,-535.312697,0.000229,7]
[368694333,1751302240690,-151.0,0.000229,7]
[368694335,1751302240699,-151.0,0.000229,7]
[368694337,1751302240709,-151.0,0.000229,7]
[368694339,1751302240718,-151.0,0.000229,7]
[368694340,1751302240729,-151.0,0.000229,7]
[368694341,1751302240738,-151.0,0.000229,7]
[368694342,1751302240748,-151.0,0.000229,7]
[368694343,1751302240761,-151.0,0.000229,7]
[368694344,1751302240772,-151.0,0.000229,7]
[368694345,1751302240782,-847.41730813,0.000229,7]
[368694346,1751302240791,-151.0,0.000229,7]
[368694347,1751302240802,-151.0,0.000229,7]
[368694348,1751302240811,-213.84631524,0.000229,7]
[368694349,1751302240821,-151.0,0.000229,7]
[368694350,1751302240830,-151.0,0.000229,7]
[368694351,1751302240840,-151.0,0.000229,7]
[368694352,1751302240849,-171.0,0.0002295,3]
[368694353,1751302240858,-151.0,0.0002295,3]
[368694354,1751302240874,-171.0,0.0002295,3]
[368694355,1751302240884,-151.0,0.0002295,3]
[368694356,1751302240895,-171.0,0.0002295,3]
[368694357,1751302240905,-272.83701376,0.0002295,3]
[368694358,1751302240915,-201.0,0.0002299,6]
[368694359,1751302240925,-160.0,0.00022991,2]
[368694360,1751302240935,-213.84631524,0.00022991,2]
[368694361,1751302240945,-160.0,0.00022991,2]
[368694362,1751302240956,-214.99848635,0.00022991,2]
[368694363,1751302240965,-215.0738,0.00022995,2]
[368694364,1751302240975,-12425.24,0.00023,7]
[368694365,1751302240985,-2000.0,0.00023,2]
[368694366,1751302240998,-506.11,0.00023,5]
[368694367,1751302241009,-1332.36157721,0.00023,2]
[368694368,1751302241018,-160.0,0.00023,3]
[368694369,1751302241029,-171.48448865,0.00023,5]
[368694370,1751302241040,-206.0,0.00023,2]
[368694371,1751302241049,-151.0,0.00023,7]
[368694372,1751302241059,-215.98119737,0.00023,8]
[368694373,1751302241068,-206.0,0.00023,2]
[368694374,1751302241078,-5035.21,0.00023,7]
[368694375,1751302241088,-480.0,0.00023,2]
[368694376,1751302241097,-206.0,0.00023,2]
[368694377,1751302241107,-151.0,0.00023,7]
[368694378,1751302241117,-168.0,0.00023015,2]
[368694379,1751302241126,-151.0,0.00023025,7]
[368694380,1751302241137,-1645.5,0.00023025,4]
[368694381,1751302241147,-602.0,0.00023026,2]
[368694382,1751302241156,-358.0,0.00023042,2]
[368694383,1751302241166,-460.0,0.00023094,2]
[368694384,1751302241176,-151.0,0.00023125,7]
[368694385,1751302241186,-229.354144,0.00023125,2]
[368694386,1751302241196,-535.312697,0.00023125,7]
[368694387,1751302241205,-535.312697,0.00023125,7]
[368694388,1751302241215,-151.0,0.00023125,7]
[368694389,1751302241225,-1645.5,0.00023125,5]
[368694390,1751302241235,-239.0,0.0002316,2]
[368694391,1751302241244,-1645.5,0.00023225,7]
[368694392,1751302241254,-32150.01561871,0.00023241,2]
[368694393,1751302241263,-720.799827,0.00023241,7]
[368694394,1751302241272,-151.0,0.00023241,7]
[368694395,1751302241282,-720.799827,0.00023241,7]
[368694396,1751302241291,-151.0,0.00023288,2]
[368694397,1751302241301,-1500.0,0.00023288,14]
[368694398,1751302241310,-1500.0,0.00023288,14]
[368694399,1751302241493,-1500.0,0.00023288,14]
[368694400,1751302241505,-1500.0,0.00023288,14]
[368694401,1751302241515,-1462.214248,0.00023288,14]
[368694402,1751302241525,-151.0,0.00023288,7]
[368694403,1751302241535,-474.71465514,0.0002329,4]
[368694404,1751302241545,-474.71465514,0.0002329,4]
[368694405,1751302241554,-474.71465514,0.0002329,4]
[368694406,1751302241565,-474.71465514,0.0002329,4]
[368694407,1751302241574,-474.71465514,0.0002329,4]
[368694408,1751302241584,-474.71465514,0.0002329,4]
[368694409,1751302241593,-474.71465514,0.0002329,4]
[368694410,1751302241603,-474.71465514,0.0002329,4]
[368694411,1751302241612,-474.71465514,0.0002329,4]
[368694412,1751302241622,-474.71465514,0.0002329,4]
[368694413,1751302241632,-474.71465514,0.0002329,4]
[368694414,1751302241643,-474.71465514,0.0002329,4]
[368694415,1751302241653,-474.71465514,0.0002329,4]
[368694416,1751302241663,-474.71465514,0.0002329,4]
[368694417,1751302241672,-474.71465514,0.0002329,4]
[368694418,1751302241682,-474.71465514,0.0002329,4]
[368694419,1751302241694,-474.71465514,0.0002329,4]
[368694420,1751302241704,-474.71465514,0.0002329,4]
[368694421,1751302241713,-474.71465514,0.0002329,4]
[368694422,1751302241723,-474.71,0.0002329,4]
[368694423,1751302241732,-1107.66752867,0.0002329,4]
[368694424,1751302241742,-1107.66752867,0.0002329,4]
[368694425,1751302241751,-1107.66752867,0.0002329,4]
[368694426,1751302241761,-1107.66752867,0.0002329,4]
[368694427,1751302241772,-1107.66752867,0.0002329,4]
[368694428,1751302241782,-1107.66752867,0.0002329,4]
[368694429,1751302241791,-1107.66752867,0.0002329,4]
[368694430,1751302241800,-1107.66752867,0.0002329,4]
[368694431,1751302241810,-1107.66752867,0.0002329,4]
[368694432,1751302241819,-1107.66752867,0.0002329,4]
[368694433,1751302241828,-1107.66752867,0.0002329,4]
[368694434,1751302241838,-1107.66752867,0.0002329,4]
[368694435,1751302241847,-1107.66752867,0.0002329,4]
[368694436,1751302241857,-1107.66752867,0.0002329,4]
[368694437,1751302241866,-1107.66752867,0.0002329,4]
[368694438,1751302241876,-1107.66752867,0.0002329,4]
[368694439,1751302241886,-1107.66752867,0.0002329,4]
[368694440,1751302241895,-1107.66752867,0.0002329,4]
[368694441,1751302241905,-1107.66752867,0.0002329,4]
[368694442,1751302241914,-1368.92,0.000233,7]
[368694443,1751302241925,-151.0,0.00023315,2]
[368694444,1751302241934,-168.0,0.00023324,2]
[368694445,1751302241943,-151.0,0.00023325,7]
[368694446,1751302241953,-1645.5,0.00023325,2]
[368694447,1751302241963,-8569.75171391,0.00023327,5]
[368694448,1751302241972,-169.366768,0.00023327,7]
[368694449,1751302241983,-535.312697,0.00023327,7]
[368694450,1751302241992,-535.312697,0.00023327,7]
[368694451,1751302242002,-151.0,0.00023327,7]
[368694452,1751302242013,-151.0,0.00023343,2]
[368694453,1751302242022,-460.0,0.00023368,2]
[368694454,1751302242032,-218.31066978,0.0002337,2]
[368694455,1751302242042,-720.799827,0.00023373,7]
[368694456,1751302242051,-151.0,0.00023373,7]
[368694457,1751302242060,-720.799827,0.00023373,7]
[368694458,1751302242070,-228.725467,0.00023373,7]
[368694459,1751302242079,-1107.66,0.00023375,4]
[368694460,1751302242089,-602.0,0.00023394,2]
[368694461,1751302242100,-18373.91251,0.000234,7]
[368694462,1751302242109,-410.04247781,0.000234,3]
[368694463,1751302242119,-151.0,0.000234,7]
[368694464,1751302242128,-535.312697,0.000234,7]
[368694465,1751302242138,-535.312697,0.000234,7]
[368694466,1751302242148,-151.0,0.000234,7]
[368694467,1751302242157,-168.0,0.00023402,2]
[368694468,1751302242167,-841.81617322,0.00023421,2]
[368694469,1751302242177,-1002.90420814,0.00023421,2]
[368694470,1751302242186,-1000.0,0.00023421,2]
[368694471,1751302242196,-1000.0,0.00023421,2]
[368694472,1751302242205,-1000.0,0.00023421,2]
[368694473,1751302242215,-1000.0,0.00023421,2]
[368694474,1751302242224,-1000.0,0.00023421,2]
[368694475,1751302242234,-501.46935114,0.00023421,2]
[368694476,1751302242243,-1000.0,0.00023421,2]
[368694477,1751302242253,-1000.0,0.00023421,2]
[368694478,1751302242262,-552.70320587,0.00023421,2]
[368694479,1751302242272,-1000.0,0.00023421,2]
[368694480,1751302242281,-1000.0,0.00023421,2]
[368694481,1751302242291,-408.06056088,0.00023421,2]
[368694482,1751302242300,-1200.0,0.00023421,2]
[368694483,1751302242310,-1000.0,0.00023421,2]
[368694484,1751302242319,-1000.0,0.00023421,2]
[368694485,1751302242329,-720.799827,0.00023421,7]
[368694486,1751302242339,-720.799827,0.00023421,7]
[368694487,1751302242348,-168.0,0.00023423,2]
[368694488,1751302242358,-1645.5,0.00023425,6]
[368694489,1751302242367,-261.0,0.00023431,2]
[368694490,1751302242377,-602.0,0.0002345,2]
[368694491,1751302242389,-500.0,0.00023473,2]
[368694492,1751302242399,-500.0,0.00023473,2]
[368694493,1751302242409,-500.0,0.00023473,2]
[368694494,1751302242419,-500.0,0.00023473,2]
[368694495,1751302242429,-500.0,0.00023473,2]
[368694496,1751302242439,-500.0,0.00023473,2]
[368694497,1751302242449,-500.0,0.00023473,2]
[368694498,1751302242459,-500.0,0.00023473,2]
[368694499,1751302242470,-500.0,0.00023473,2]
[368694500,1751302242480,-500.0,0.00023473,2]
[368694501,1751302242489,-500.0,0.00023473,2]
[368694502,1751302242499,-500.0,0.00023473,2]
[368694503,1751302242511,-500.0,0.00023473,2]
[368694504,1751302242520,-500.0,0.00023473,2]
[368694505,1751302242530,-500.0,0.00023473,2]
[368694506,1751302242539,-500.0,0.00023473,2]
[368694507,1751302242548,-500.0,0.00023473,2]
[368694508,1751302242558,-160.047979,0.00023473,2]
[368694509,1751302242568,-500.0,0.00023473,2]
[368694510,1751302242578,-468.30036859,0.00023473,2]
[368694511,1751302242587,-500.0,0.00023473,2]
[368694512,1751302242596,-160.0494529,0.00023473,2]
[368694513,1751302242606,-500.0,0.00023473,2]
[368694514,1751302242616,-500.0,0.00023473,2]
[368694515,1751302242625,-500.0,0.00023473,2]
[368694516,1751302242635,-500.0,0.00023473,2]
[368694517,1751302242647,-160.04803609,0.00023473,2]
[368694518,1751302242656,-500.0,0.00023473,2]
[368694519,1751302242666,-500.0,0.00023473,2]
[368694520,1751302242675,-500.0,0.00023473,2]
[368694521,1751302242689,-500.0,0.00023473,2]
[368694522,1751302242699,-500.0,0.00023473,2]
[368694523,1751302242709,-500.0,0.00023473,2]
[368694524,1751302242720,-564.16242984,0.00023473,2]
[368694525,1751302242731,-521.29076982,0.00023473,2]
[368694526,1751302242740,-500.0,0.00023473,2]